bitfinex-derivatives/quotes_ETHF0:USTF0_20250309
["timestamp","ask_amount","ask_price","bid_price","bid_amount"]
[1741530738633,0.00708567,2117.3,2117.1,6.74853]
[1741530738924,0.00708567,2117.3,2117.1,5.8037]
[1741530739221,0.00708567,2117.3,2117.1,2.502]
[1741530739711,0.95186567,2117.3,2117.1,2.502]
[1741530739916,0.94481,2117.2,2117.1,2.502]
[1741530740116,0.95186567,2117.3,2117.1,2.502]
[1741530740323,0.00708567,2117.3,2117.1,2.502]
[1741530741026,0.94481,2117.2,2117.1,2.502]
[1741530741325,0.00708567,2117.3,2117.1,2.502]
[1741530741527,0.94486,2117.1,2116.9,2.985]
[1741530741822,0.00708567,2117.3,2116.9,3.92992]
[1741530742023,0.00708567,2117.3,2116.9,2.985]
[1741530742230,0.94487,2117.1,2116.9,2.985]
[1741530742525,3.33038567,2117.3,2116.8,22.5673]
[1741530742721,0.94494,2116.9,2116.8,22.5673]
[1741530742918,3.436,2117.2,2116.8,22.5673]
[1741530743226,3.436,2117.2,2116.8,23.51227]
[1741530743425,0.94487,2117.1,2116.8,23.51227]
[1741530743725,0.94486,2117.1,2116.8,22.5673]
[1741530744022,3.33038567,2117.3,2116.8,22.5673]
[1741530744224,0.94483,2117.2,2116.8,23.51226]
[1741530744423,0.94487,2117.1,2116.8,22.5673]
[1741530744618,3.33038567,2117.3,2116.8,22.5673]
[1741530744827,0.94487,2117.1,2116.8,22.5673]
[1741530745027,3.33038567,2117.3,2116.8,22.5673]
[1741530745522,0.94486,2117.1,2116.8,23.51227]
[1741530745824,0.94494,2116.9,2116.8,19.277]
[1741530746514,5.0871,2117.0,2116.6,0.94505]
[1741530746719,0.94508,2116.6,2116.4,1.79988567]
[1741530747618,1.7331,2116.8,2116.4,1.79988567]
[1741530747924,0.94512,2116.5,2116.4,1.79988567]
[1741530748227,0.94512,2116.5,2116.4,0.00708567]
[1741530748524,4.15292,2116.5,2116.4,0.00708567]
[1741530749719,3.2078,2116.5,2116.0,19.274]
[1741530749920,0.9453,2116.1,2116.0,19.274]
[1741530750225,0.94526,2116.2,2116.0,19.274]
[1741530750431,1.8623,2116.1,2116.0,19.274]
[1741530750927,2.8076,2116.1,2116.0,19.274]
[1741530751135,1.8623,2116.1,2116.0,19.274]
[1741530751628,2.3625,2116.8,2116.0,19.274]
[1741530751629,4.15276,2116.9,2116.1,2.36326]
[1741530751830,4.15276,2116.9,2116.4,0.94514]
[1741530751831,2.80729,2116.8,2116.4,0.94514]
[1741530752028,1.8623,2116.8,2116.6,0.94506]
[1741530752230,1.8623,2116.8,2116.3,3.2078]
[1741530752428,1.8623,2116.8,2116.5,0.94508]
[1741530752732,1.8623,2116.8,2116.6,0.94506]
[1741530752932,1.3505,2117.0,2116.7,3.2078]
[1741530753230,2.80711,2117.2,2117.0,0.94488]
[1741530753423,2.80711,2117.2,2116.9,0.94492]
[1741530753622,2.80711,2117.2,2116.9,0.95200567]
[1741530753832,1.8623,2117.2,2117.0,40.8]
[1741530754028,0.94485,2117.1,2117.0,40.8]
[1741530754630,0.94485,2117.1,2116.9,0.95200567]
[1741530754934,0.94485,2117.1,2116.9,0.95202567]
[1741530755127,2.80713,2117.2,2116.9,41.75202567]
[1741530755333,2.80714,2117.2,2116.9,41.75201567]
[1741530755733,2.80714,2117.2,2116.9,40.80708567]
[1741530756024,2.80714,2117.2,2116.9,41.75200567]
[1741530756430,2.80714,2117.2,2116.9,40.80708567]
[1741530756730,1.3505,2117.5,2117.1,3.2078]
[1741530757031,2.66894,2117.8,2117.6,0.94461]
[1741530757223,2.66894,2117.8,2117.4,3.2078]
[1741530757224,0.94463,2117.6,2117.4,3.2078]
[1741530757420,0.94469,2117.5,2117.2,0.94479]
[1741530757627,0.94474,2117.4,2117.1,4.15263]
[1741530758626,0.00708567,2117.5,2117.1,3.2078]
[1741530759024,0.95178567,2117.5,2117.1,3.2078]
[1741530759225,0.00708567,2117.5,2117.1,3.2078]
[1741530759431,0.00708567,2117.5,2117.2,0.94477]
[1741530759734,0.00708567,2117.5,2117.3,0.94475]
[1741530760334,0.00708567,2117.5,2117.1,3.2078]
[1741530760531,0.95177567,2117.5,2117.2,0.94479]
[1741530761335,0.95177567,2117.5,2117.2,0.94477]
[1741530761634,0.00708567,2117.5,2117.4,4.15252]
[1741530761831,0.00708567,2117.5,2117.4,6.64952]
[1741530762536,1.7244,2117.8,2117.7,0.94459]
[1741530763628,0.9446,2117.7,2117.5,1.8763]
[1741530763929,0.94463,2117.6,2117.5,1.8763]
[1741530764935,0.94463,2117.6,2117.4,5.7048]
[1741530766032,4.9322,2117.8,2117.2,1.7182]
[1741530766236,1.7223,2117.5,2117.2,1.7182]
[1741530766433,0.94468,2117.5,2117.2,2.66299]
[1741530766638,0.94472,2117.4,2117.2,1.7182]
[1741530767239,6.6545,2117.8,2117.2,1.7182]
[1741530767437,0.94476,2117.3,2117.2,1.7182]
[1741530768138,9.01593,2117.8,2117.2,1.7182]
[1741530768335,9.01593,2117.8,2117.2,2.66298]
[1741530768336,0.94469,2117.5,2117.2,2.66298]
[1741530768531,6.6545,2117.8,2117.2,2.66298]
[1741530768532,0.94474,2117.4,2117.2,1.7182]
[1741530768840,0.94476,2117.3,2117.2,1.7182]
[1741530770033,0.94467,2117.6,2117.3,0.94474]
[1741530770240,6.6545,2117.8,2117.5,4.15247]
[1741530770241,4.9322,2117.8,2117.5,4.15247]
[1741530770436,0.9446,2117.7,2117.5,4.15247]
[1741530770634,0.94463,2117.6,2117.5,3.2078]
[1741530770840,0.94471,2117.5,2117.2,5.87078]
[1741530771137,0.94474,2117.4,2117.2,5.87081]
[1741530771345,2.36147,2117.7,2117.2,4.926]
[1741530771642,4.09117,2117.7,2117.2,4.926]
[1741530772337,0.94476,2117.3,2117.2,4.926]
[1741530772648,0.94476,2117.3,2117.2,1.7182]
[1741530772842,0.9447,2117.5,2117.2,2.66298]
[1741530773047,7.29361,2117.8,2117.2,4.926]
[1741530773440,0.94474,2117.4,2117.2,4.926]
[1741530773632,1.7637,2117.3,2117.2,4.926]
[1741530774440,2.70846,2117.3,2117.2,4.926]
[1741530774636,1.7637,2117.3,2117.2,4.926]
[1741530774837,1.7637,2117.3,2117.2,5.87081]
[1741530775034,1.7637,2117.3,2117.2,4.926]
[1741530775237,1.7637,2117.3,2117.2,1.7182]
[1741530775539,2.70846,2117.3,2117.2,1.7182]
[1741530779045,2.70846,2117.3,2117.2,2.66301]
[1741530779247,1.7637,2117.3,2117.2,1.7182]
[1741530779649,2.70846,2117.3,2117.2,1.7182]
[1741530779957,0.94481,2117.2,2117.1,2.496]
[1741530780252,2.15461,2117.2,2117.1,2.496]
[1741530780850,1.2098,2117.2,2117.1,3.44085]
[1741530781157,2.15461,2117.2,2117.1,2.496]
[1741530782060,0.9449,2117.0,2116.9,3.21488567]
[1741530782251,1.2098,2117.2,2116.7,19.269]
[1741530782252,0.94499,2116.8,2116.7,19.269]
[1741530782449,4.4176,2117.2,2116.7,19.269]
[1741530782753,0.94499,2116.8,2116.7,19.269]
[1741530783451,0.94499,2116.8,2116.5,0.00708567]
[1741530783452,0.94508,2116.6,2116.5,0.00708567]
[1741530783646,4.15288,2116.6,2116.5,0.00708567]
[1741530783843,3.2078,2116.6,2116.1,2.493]
[1741530784047,3.2078,2116.3,2115.9,23.0717]
[1741530784251,3.2078,2116.3,2116.0,40.8]
[1741530784252,0.9453,2116.1,2116.0,40.8]
[1741530784649,1.3138,2116.2,2115.9,23.0717]
[1741530785453,1.3138,2116.2,2115.9,24.01709]
[1741530785454,2.25908,2116.2,2115.9,24.01709]
[1741530785855,2.25906,2116.2,2115.9,23.0717]
[1741530786054,1.3138,2116.2,2115.9,23.0717]
[1741530786253,2.25908,2116.2,2115.9,24.01708]
[1741530786454,0.9453,2116.1,2115.9,23.0717]
[1741530786855,2.25908,2116.2,2115.9,23.0717]
[1741530787052,0.9453,2116.1,2115.9,23.0717]
[1741530787459,2.2591,2116.2,2115.9,24.01706]
[1741530787651,0.94532,2116.1,2115.9,23.0717]
[1741530788257,1.3138,2116.2,2115.9,23.0717]
[1741530788456,1.3138,2116.2,2116.0,0.94534]
[1741530788758,1.3138,2116.2,2115.9,23.0717]
[1741530788759,1.3138,2116.2,2116.1,4.1531]
[1741530788955,2.23734,2116.5,2116.1,3.2078]
[1741530789155,1.2922,2116.5,2116.1,3.2078]
[1741530789561,0.94511,2116.6,2116.2,40.8]
[1741530789760,3.2078,2117.3,2116.4,3.2078]
[1741530789962,0.94481,2117.2,2117.1,3.2078]
[1741530790158,0.94479,2117.3,2117.1,3.2078]
[1741530790460,0.94481,2117.2,2117.1,4.4991]
[1741530790962,0.94477,2117.3,2117.1,2.23614]
[1741530791165,0.94481,2117.2,2117.1,1.2913]
[1741530791861,0.94481,2117.3,2117.1,1.2913]
[1741530792059,0.94478,2117.3,2117.1,1.2913]
[1741530792458,0.00708567,2117.4,2117.1,1.2913]
[1741530792655,0.94481,2117.2,2117.1,1.2913]
[1741530793159,0.00708567,2117.4,2117.2,0.94478]
[1741530793365,0.95181567,2117.4,2117.2,0.94478]
[1741530793556,0.94479,2117.3,2117.1,1.2913]
[1741530793861,0.94481,2117.2,2117.1,1.2913]
[1741530794063,0.95182567,2117.4,2117.1,2.23611]
[1741530794260,0.00708567,2117.4,2117.1,1.2913]
[1741530794773,0.00708567,2117.4,2117.2,0.9448]
[1741530794967,0.00708567,2117.4,2117.3,0.94476]
[1741530795263,0.00708567,2117.4,2117.3,6.64456]
[1741530795456,1.2797,2117.9,2117.3,6.0783973]
[1741530795655,1.2797,2117.9,2117.7,3.2078]
[1741530795852,0.9446,2117.7,2117.3,6.0783973]
[1741530796060,0.9446,2117.7,2117.4,42.21748]
[1741530796262,0.94465,2117.6,2117.3,4.15253]
[1741530796569,0.00708567,2117.7,2117.3,3.2078]
[1741530796762,0.00708567,2117.7,2117.6,4.15243]
[1741530797966,1.2797,2117.9,2117.8,0.94454]
[1741530798661,3.2078,2118.2,2117.7,1.2698]
[1741530798864,5.47645,2118.5,2118.2,0.94435]
[1741530799056,5.47645,2118.5,2117.9,3.2078]
[1741530799057,0.94431,2118.4,2118.1,0.94439]
[1741530799267,0.94431,2118.4,2118.0,2.491]
[1741530799268,5.47645,2118.5,2118.2,0.94433]
[1741530799565,4.5322,2118.5,2118.0,2.49808567]
[1741530800256,0.9443,2118.4,2118.0,2.49808567]
[1741530800460,0.94428,2118.4,2118.2,0.94436]
[1741530800761,0.94435,2118.3,2118.0,3.44252567]
[1741530800967,0.94438,2118.2,2118.0,2.49808567]
[1741530801268,0.94441,2118.1,2118.0,2.49808567]
[1741530801464,0.94441,2118.1,2118.0,0.00708567]
[1741530801667,0.94438,2118.2,2118.0,0.00708567]
[1741530801971,0.94441,2118.1,2118.0,0.00708567]
[1741530802284,1.3244,2118.5,2118.4,0.94427]
[1741530802472,4.15177,2119.1,2118.8,0.94406]
[1741530802769,4.15177,2119.1,2118.5,1.2808]
[1741530802770,3.2078,2119.1,2118.5,1.2808]
[1741530802959,3.2078,2119.1,2118.5,2.225]
[1741530803357,3.2078,2119.1,2118.4,5.6978]
[1741530803570,0.94411,2118.8,2118.5,0.94421]
[1741530803762,3.2078,2119.1,2118.4,6.04863244]
[1741530803958,0.94423,2118.5,2118.4,2.49]
[1741530804163,3.2078,2118.8,2118.1,23.5704]
[1741530804164,5.56808,2118.8,2118.1,23.5704]
[1741530804364,3.2078,2118.5,2118.1,20.3626]
[1741530804767,4.15206,2118.5,2118.2,0.94435]
[1741530804969,3.2078,2118.8,2118.1,23.91896057]
[1741530805165,0.94426,2118.5,2118.2,0.94435]
[1741530806071,2.3439,2118.7,2118.1,23.91896057]
[1741530806268,1.0145,2118.7,2118.6,4.15198]
[1741530806570,1.3294,2119.1,2118.6,3.2078]
[1741530806773,0.94406,2118.9,2118.7,0.94414]
[1741530807071,0.94411,2118.8,2118.6,4.15196]
[1741530807266,0.94411,2118.8,2118.6,4.15198]
[1741530807663,0.9441,2118.8,2118.7,40.8]
[1741530807864,0.94414,2118.7,2118.6,3.2078]
[1741530808170,1.3294,2119.1,2118.6,4.15198]
[1741530808374,0.94408,2118.9,2118.6,44.95198]
[1741530808666,1.3294,2119.1,2118.6,44.95196]
[1741530808862,3.2078,2120.0,2118.9,3.2078]
[1741530809063,3.2078,2120.0,2119.5,3.2078]
[1741530809064,1.0785,2119.9,2119.5,3.2078]
[1741530809474,0.94366,2119.8,2119.5,3.2078]
[1741530809782,1.0785,2119.9,2119.5,3.2078]
[1741530809970,2.03376,2119.8,2119.5,3.2078]
[1741530810175,1.0901,2119.8,2119.5,3.2078]
[1741530810361,1.0901,2120.4,2119.6,1.5422]
[1741530810568,0.94343,2120.3,2120.2,3.2078]
[1741530811273,0.94349,2120.2,2119.9,3.2078]
[1741530811774,1.0901,2120.4,2119.9,3.2078]
[1741530812369,0.94356,2120.0,2119.9,3.2078]
[1741530812673,1.0901,2120.4,2119.9,3.2078]
[1741530812975,1.0901,2120.4,2120.2,3.2078]
[1741530813375,2.02177,2120.7,2120.2,6.63824]
[1741530813570,1.0785,2120.7,2120.3,0.472]
[1741530813775,3.2078,2121.1,2120.5,3.2078]
[1741530813969,0.94313,2121.0,2120.8,3.2078]
[1741530814171,4.2768,2121.4,2120.8,3.58450312]
[1741530814476,4.2768,2121.4,2120.8,3.2078]
[1741530814477,0.94303,2121.2,2120.8,3.2078]
[1741530814675,4.2768,2121.4,2120.9,0.472]
[1741530814875,0.94299,2121.3,2121.0,2.486]
[1741530815068,0.94307,2121.1,2121.0,2.486]
[1741530815277,0.94312,2121.0,2120.9,0.472]
[1741530815667,3.2078,2121.2,2120.4,3.2078]
[1741530815873,0.94334,2120.5,2120.4,3.2078]
[1741530816165,2.3578,2121.0,2120.3,21.74708567]
[1741530816370,0.94333,2120.6,2120.4,3.2078]
[1741530816773,0.94334,2120.5,2120.4,3.2078]
[1741530816972,0.94338,2120.4,2120.3,21.74708567]
[1741530817177,3.2078,2120.8,2120.3,22.46888567]
[1741530817480,0.94325,2120.7,2120.6,3.2078]
[1741530817673,1.0428,2120.9,2120.6,3.2078]
[1741530818577,0.94325,2120.7,2120.6,3.2078]
[1741530818765,1.0428,2120.9,2120.4,2.485]
[1741530818967,0.94334,2120.5,2120.4,2.485]
[1741530819168,1.0239,2120.8,2120.4,2.485]
[1741530819373,0.94327,2120.7,2120.4,2.485]
[1741530819574,1.96713,2120.8,2120.4,2.485]
[1741530819775,1.0428,2120.9,2120.7,3.2078]
[1741530819978,0.94321,2120.8,2120.7,3.2078]
[1741530820176,1.0428,2120.9,2120.7,3.2078]
[1741530820876,0.94321,2120.8,2120.7,3.2078]
[1741530821273,1.0428,2120.9,2120.7,3.2078]
[1741530821475,0.94321,2120.8,2120.7,3.2078]
[1741530821868,1.98598,2120.9,2120.7,3.2078]
[1741530822076,1.0428,2120.9,2120.7,3.2078]
[1741530822375,1.97506,2121.2,2120.8,3.42719]
[1741530822579,1.97506,2121.2,2121.0,3.2078]
[1741530822768,1.032,2121.2,2121.0,44.0078]
[1741530822971,1.0548,2121.4,2121.0,44.0078]
[1741530823176,1.99776,2121.4,2121.0,44.0078]
[1741530823375,1.0548,2121.4,2121.0,44.0078]
[1741530823673,1.0548,2121.4,2120.9,3.2078]
[1741530823879,0.94325,2120.7,2120.6,3.2078]
[1741530824277,1.1117,2121.1,2120.6,3.2078]
[1741530824479,0.94325,2120.7,2120.6,3.2078]
[1741530825382,3.2078,2121.0,2120.6,3.2078]
[1741530825783,0.94325,2120.7,2120.6,3.2078]
[1741530826079,3.2078,2121.0,2120.6,3.2078]
[1741530826376,3.2078,2121.0,2120.7,0.94323]
[1741530826578,3.2078,2121.0,2120.6,4.15108]
[1741530826885,0.9432,2120.9,2120.6,3.2078]
[1741530827072,3.2078,2121.0,2120.6,3.2078]
[1741530827073,4.15094,2121.0,2120.6,3.2078]
[1741530827277,1.1117,2121.1,2120.9,3.2078]
[1741530827479,2.35722,2121.6,2120.9,3.2078]
[1741530827674,2.35746,2121.3,2120.7,2.483]
[1741530827876,0.94319,2120.9,2120.7,2.483]
[1741530828078,4.2626,2121.4,2120.7,3.42622]
[1741530828281,0.9431,2121.1,2120.9,3.2078]
[1741530828677,4.2626,2121.4,2120.9,3.2078]
[1741530828981,4.2626,2121.4,2120.7,2.483]
[1741530828982,0.94316,2120.9,2120.7,2.483]
[1741530829184,0.94314,2121.0,2120.7,2.483]
[1741530829787,0.94312,2121.0,2120.7,43.283]
[1741530829990,0.94312,2121.0,2120.7,44.22623]
[1741530830283,4.2626,2121.4,2120.7,43.283]
[1741530830488,0.94311,2121.1,2120.7,44.22623]
[1741530830779,4.2626,2121.4,2120.7,43.283]
[1741530830983,5.20556,2121.4,2120.9,3.2078]
[1741530831290,5.20556,2121.4,2121.0,1.9793]
[1741530831676,0.94299,2121.3,2121.0,1.9793]
[1741530832077,4.2626,2121.4,2120.9,3.2078]
[1741530832382,3.2078,2121.1,2120.6,3.2078]
[1741530832581,0.94325,2120.7,2120.6,3.2078]
[1741530832985,0.94338,2120.5,2120.3,21.74308567]
[1741530833291,1.0326,2120.6,2120.4,40.8]
[1741530833486,0.94334,2120.5,2120.4,40.8]
[1741530834483,0.94338,2120.4,2120.3,19.26108567]
[1741530834976,0.94338,2120.4,2120.3,60.06108567]
[1741530836276,0.94338,2120.4,2120.3,19.26108567]
[1741530837381,0.94338,2120.4,2120.3,0.00708567]
[1741530838580,0.94338,2120.4,2119.8,3.2078]
[1741530838581,3.2078,2120.4,2120.1,3.2078]
[1741530838885,0.94356,2120.0,2119.8,2.482]
[1741530839091,4.0832,2120.4,2119.8,2.482]
[1741530839288,0.94356,2120.0,2119.9,40.8]
[1741530839989,0.94353,2120.1,2119.9,40.8]
[1741530840290,0.94356,2120.0,2119.9,40.8]
[1741530840789,0.94361,2119.9,2119.8,2.482]
[1741530840990,0.8844,2119.9,2119.8,2.482]
[1741530841192,1.82801,2119.9,2119.8,43.282]
[1741530842186,1.82801,2119.9,2119.8,40.8]
[1741530842589,0.94365,2119.8,2119.7,0.00708567]
[1741530842787,5.75315,2119.8,2119.7,0.00708567]
[1741530842988,5.75315,2119.8,2119.4,3.2078]
[1741530842989,0.94378,2119.5,2119.4,3.2078]
[1741530843490,0.94378,2119.5,2119.2,41.6932]
[1741530843491,0.94387,2119.3,2119.2,41.6932]
[1741530843692,0.94387,2119.3,2119.2,0.8932]
[1741530843887,0.94387,2119.4,2119.2,0.8932]
[1741530844087,0.94387,2119.3,2119.2,0.8932]
[1741530844397,3.2078,2119.5,2119.0,2.48808567]
[1741530844696,0.94396,2119.1,2119.0,2.48808567]
[1741530845297,0.8593,2119.2,2119.0,2.48808567]
[1741530845490,1.80325,2119.2,2119.1,3.2078]
[1741530845793,0.94396,2119.1,2119.0,2.48808567]
[1741530846291,0.94396,2119.1,2119.0,0.00708567]
[1741530846696,1.74866,2119.1,2119.0,0.00708567]
[1741530847097,0.8593,2119.2,2119.0,0.95109567]
[1741530847301,3.2078,2119.9,2119.1,3.2078]
[1741530847599,0.8593,2119.6,2119.5,0.94378]
[1741530847788,0.8593,2119.6,2119.4,3.2078]
[1741530847988,0.8593,2119.6,2119.4,4.15162]
[1741530848195,1.80304,2119.6,2119.4,3.2078]
[1741530848388,0.8593,2119.6,2119.4,3.2078]
[1741530848892,1.80305,2119.6,2119.4,3.2078]
[1741530849197,0.8593,2119.6,2119.4,3.2078]
[1741530849495,0.8593,2119.6,2119.5,0.94378]
[1741530849695,0.8593,2119.6,2119.5,0.8235]
[1741530849994,0.8593,2119.6,2119.5,42.56728]
[1741530850495,0.8593,2119.6,2119.5,41.6235]
[1741530850693,0.8593,2119.6,2119.5,42.56728]
[1741530851089,0.8593,2119.6,2119.5,41.6235]
[1741530851295,1.80304,2119.6,2119.5,41.6235]
[1741530851595,0.94387,2119.3,2119.2,3.2078]
[1741530851793,0.8593,2119.6,2119.2,3.2078]
[1741530852187,0.94387,2119.3,2119.0,0.95107567]
[1741530852393,0.94395,2119.2,2119.0,2.48808567]
[1741530852893,3.21866,2119.6,2119.0,2.48808567]
[1741530852894,0.94396,2119.1,2119.0,2.48808567]
[1741530853097,0.94396,2119.1,2119.0,0.00708567]
[1741530854397,0.94396,2119.1,2118.6,3.2078]
[1741530854398,0.94414,2118.7,2118.6,3.2078]
[1741530854996,0.94423,2118.5,2118.4,0.8912]
[1741530855599,0.00708567,2118.7,2118.3,3.2078]
[1741530855600,0.94427,2118.4,2118.3,3.2078]
[1741530856099,0.00708567,2118.7,2118.3,3.2078]
[1741530856302,2.481,2119.8,2118.6,5.56826]
[1741530856498,2.481,2119.8,2118.4,0.4728]
[1741530856499,2.481,2119.8,2119.2,3.2078]
[1741530856694,2.481,2119.8,2118.8,3.2078]
[1741530856995,2.481,2119.8,2119.2,0.9439]
[1741530856996,0.94381,2119.5,2119.2,0.9439]
[1741530857198,2.481,2119.8,2119.1,3.2078]
[1741530857502,0.94392,2119.2,2119.1,3.21488567]
[1741530857693,0.94386,2119.4,2119.1,3.21488567]
[1741530858095,3.21488567,2119.6,2119.1,3.21488567]
[1741530858290,0.00708567,2119.6,2119.5,3.2078]
[1741530858502,0.00708567,2119.6,2119.5,4.15158]
[1741530858896,0.95082567,2119.6,2119.5,3.2078]
[1741530859297,0.95082567,2119.6,2119.4,2.48]
[1741530859298,0.94378,2119.5,2119.4,2.48]
[1741530859499,0.94383,2119.4,2119.3,40.8]
[1741530859800,0.8492,2119.5,2119.1,5.69488567]
[1741530860103,0.94392,2119.2,2119.1,5.69488567]
[1741530860306,0.94392,2119.2,2119.1,0.00708567]
[1741530861395,4.057,2119.5,2119.1,0.00708567]
[1741530861607,0.94386,2119.4,2119.1,0.00708567]
[1741530861910,4.8953,2119.5,2119.2,0.94389]
[1741530862207,4.8953,2119.5,2119.3,0.8444]
[1741530862513,5.83909,2119.5,2119.3,0.8444]
[1741530862705,2.63129,2119.5,2119.3,0.8444]
[1741530863000,0.00708567,2119.6,2119.4,4.15159]
[1741530863599,0.00708567,2119.6,2119.4,3.2078]
[1741530864008,0.95084567,2119.6,2119.4,3.2078]
[1741530864204,0.00708567,2119.6,2119.4,4.15162]
[1741530864401,0.95084567,2119.6,2119.4,3.2078]
[1741530864706,0.00708567,2119.6,2119.4,3.2078]
[1741530865706,0.00708567,2119.6,2119.4,4.1516]
[1741530866103,0.00708567,2119.6,2119.5,0.94378]
[1741530866501,0.00708567,2119.6,2119.4,3.2078]
[1741530867106,0.00708567,2119.6,2119.5,0.94378]
[1741530867506,0.00708567,2119.6,2119.4,3.2078]
[1741530867708,0.95083567,2119.6,2119.4,3.2078]
[1741530868009,0.00708567,2119.6,2119.4,3.2078]
[1741530868310,0.94378,2119.5,2119.4,3.2078]
[1741530868505,1.70668,2119.5,2119.4,3.2078]
[1741530868710,1.70668,2119.5,2119.3,0.8444]
[1741530869010,1.70671,2119.5,2119.3,0.8444]
[1741530869602,0.7629,2119.5,2119.3,0.8444]
[1741530870410,0.7629,2119.5,2119.3,1.78826]
[1741530870605,0.7629,2119.5,2119.3,0.8444]
[1741530870909,0.95083567,2119.6,2119.4,3.2078]
[1741530871309,0.00708567,2119.6,2119.4,4.15162]
[1741530871700,0.95082567,2119.6,2119.4,3.2078]
[1741530872010,0.00708567,2119.6,2119.4,4.15162]
[1741530872200,0.00708567,2119.6,2119.5,0.94378]
[1741530874415,0.8336,2119.9,2119.8,0.94365]
[1741530874609,0.8336,2119.9,2119.8,4.15145]
[1741530875001,0.7305,2120.2,2119.8,3.2078]
[1741530875206,0.61972001,2120.2,2120.1,3.2078]
[1741530875407,1.57027568,2120.2,2120.1,3.2078]
[1741530876800,0.62680568,2120.2,2119.8,3.2078]
[1741530877006,0.94361,2119.9,2119.8,3.2078]
[1741530877208,0.94363,2119.9,2119.6,2.478]
[1741530877508,0.7548,2119.8,2119.6,2.478]
[1741530877706,0.94374,2119.6,2119.5,3.2078]
[1741530880013,0.7474,2119.7,2119.5,3.2078]
[1741530880405,1.69111,2119.7,2119.5,3.2078]
[1741530880606,0.94374,2119.6,2119.5,3.2078]
[1741530880808,0.7474,2119.7,2119.5,3.2078]
[1741530881209,0.7548,2119.8,2119.6,0.94372]
[1741530881409,0.94365,2119.8,2119.6,0.7855]
[1741530882217,0.7455,2120.0,2119.6,0.7855]
[1741530882511,0.94369,2119.8,2119.6,0.7855]
[1741530883304,0.7455,2120.0,2119.6,0.7855]
[1741530883508,0.94367,2119.8,2119.6,0.7855]
[1741530884111,0.7455,2120.0,2119.5,5.6858]
[1741530884313,0.94374,2119.6,2119.5,5.6858]
[1741530884512,0.94374,2119.6,2119.5,3.2078]
[1741530884708,0.94372,2119.7,2119.5,3.2078]
[1741530885107,0.7191,2119.6,2119.5,3.2078]
[1741530885304,0.7191,2119.6,2119.5,4.15158]
[1741530885504,0.7191,2119.6,2119.5,3.2078]
[1741530886408,1.66284,2119.6,2119.5,3.2078]
[1741530887000,0.7191,2119.6,2119.5,3.2078]
[1741530887712,1.66284,2119.6,2119.5,3.2078]
[1741530887916,0.7191,2119.6,2119.5,3.2078]
[1741530888605,2.39454,2119.6,2119.5,3.2078]
[1741530890215,1.4508,2119.6,2119.5,3.2078]
[1741530890509,2.39454,2119.6,2119.5,3.2078]
[1741530890715,1.4508,2119.6,2119.5,3.2078]
[1741530891217,1.4508,2119.6,2119.5,4.15158]
[1741530891821,1.4508,2119.6,2119.5,3.2078]
[1741530892619,2.39454,2119.6,2119.5,3.2078]
[1741530894418,2.39454,2119.6,2119.5,2.2159]
[1741530894712,1.4508,2119.6,2119.2,3.9935]
[1741530894913,3.2078,2119.5,2119.1,0.00708567]
[1741530895116,0.94389,2119.3,2119.1,0.00708567]
[1741530895716,3.2078,2119.5,2119.1,0.00708567]
[1741530896117,0.94392,2119.2,2119.1,0.00708567]
[1741530897927,3.2078,2119.5,2119.1,0.00708567]
[1741530898322,1.4508,2119.6,2119.3,0.94387]
[1741530898516,0.94379,2119.5,2119.3,0.94387]
[1741530898716,1.4508,2119.6,2119.2,1.72379]
[1741530898921,0.94386,2119.4,2119.2,0.7799]
[1741530899226,0.7191,2119.6,2119.4,0.9438]
[1741530899425,1.66284,2119.6,2119.5,0.6066]
[1741530900020,0.94387,2119.3,2119.2,3.2559]
[1741530900325,0.94392,2119.2,2119.1,3.21488567]
[1741530900518,0.94392,2119.2,2119.1,0.00708567]
[1741530900917,0.6613,2119.4,2119.1,0.00708567]
[1741530900918,0.94391,2119.3,2119.1,0.00708567]
[1741530901117,0.94392,2119.2,2119.1,0.00708567]
[1741530902123,4.15172,2119.2,2119.1,0.00708567]
[1741530902321,3.2078,2119.2,2118.9,19.251]
[1741530902620,0.94411,2118.8,2118.7,40.8]
[1741530902824,0.94407,2118.9,2118.6,3.096]
[1741530903129,0.94412,2118.8,2118.6,3.096]
[1741530903623,0.6451,2119.0,2118.6,4.04015]
[1741530903624,0.95113567,2118.9,2118.6,4.04015]
[1741530904325,0.95113567,2118.9,2118.6,4.04017]
[1741530904525,0.94413,2118.8,2118.6,3.096]
[1741530904720,0.94413,2118.8,2118.6,0.621]
[1741530904927,0.94414,2118.7,2118.6,0.621]
[1741530905925,3.21488567,2118.9,2118.5,40.80708567]
[1741530906226,3.21488567,2118.9,2118.5,0.00708567]
[1741530906227,0.94418,2118.6,2118.5,0.00708567]
[1741530907332,4.15198,2118.6,2118.5,0.00708567]
[1741530909523,3.2078,2118.6,2118.5,0.00708567]
[1741530909730,4.15198,2118.6,2118.5,0.00708567]
[1741530910027,0.94436,2118.2,2118.1,19.25]
[1741530910222,0.94445,2118.1,2117.8,3.858]
[1741530910429,0.94448,2118.0,2117.8,44.658]
[1741530910628,0.9445,2117.9,2117.8,41.4502]
[1741530910827,0.94448,2118.0,2117.8,41.4502]
[1741530911028,1.594,2117.9,2117.8,41.4502]
[1741530911230,0.6495,2117.9,2117.8,0.6502]
[1741530911430,1.594,2117.9,2117.8,0.6502]